fUST/lending_fUST_20250525
["ID","MTS","AMOUNT","RATE_DAILY","PERIOD"]
[362300977,1748176232920,-500.0,0.0001683,2]
[362300978,1748176232930,-500.0,0.0001683,2]
[362300979,1748176232940,-500.0,0.0001683,2]
[362300980,1748176232950,-500.0,0.0001683,2]
[362300981,1748176232960,-500.0,0.0001683,2]
[362300982,1748176232971,-500.0,0.0001683,2]
[362300983,1748176232981,-500.0,0.0001683,2]
[362300984,1748176232991,-500.0,0.0001683,2]
[362300985,1748176233001,-500.0,0.0001683,2]
[362300986,1748176233011,-500.0,0.0001683,2]
[362300987,1748176233021,-500.0,0.0001683,2]
[362300988,1748176233032,-569.51092134,0.0001683,2]
[362300989,1748176233043,-500.0,0.0001683,2]
[362300990,1748176233054,-500.0,0.0001683,2]
[362300991,1748176233064,-500.0,0.0001683,2]
[362300992,1748176233074,-500.0,0.0001683,2]
[362300993,1748176233084,-500.0,0.0001683,2]
[362300994,1748176233095,-500.0,0.0001683,2]
[362300995,1748176233106,-500.0,0.0001683,2]
[362300996,1748176233116,-500.0,0.0001683,2]
[362300997,1748176233126,-500.0,0.0001683,2]
[362300998,1748176233136,-500.0,0.0001683,2]
[362300999,1748176233147,-500.0,0.0001683,2]
[362301000,1748176233156,-637.49758016,0.0001683,2]
[362301001,1748176233167,-500.0,0.0001683,2]
[362301002,1748176233178,-500.0,0.0001683,2]
[362301003,1748176233189,-500.0,0.0001683,2]
[362301004,1748176233199,-500.0,0.0001683,2]
[362301005,1748176233209,-1000.012032,0.00016831,2]
[362301006,1748176233219,-151.0,0.00016831,2]
[362301007,1748176233228,-151.0,0.00016831,2]
[362301008,1748176233238,-6900.07155619,0.00016831,2]
[362301009,1748176233247,-613.41316248,0.00017054,2]
[362301010,1748176233257,-570.1314833,0.00017078,2]
[362301011,1748176233267,-500.0,0.00017104,2]
[362301012,1748176233277,-6900.07155619,0.00017141,2]
[362301013,1748176233287,-338.83258665,0.0001717,2]
[362301014,1748176233298,-193.477403,0.00017178,2]
[362301015,1748176233308,-881.851829,0.00017226,2]
[362301016,1748176233318,-420.0,0.0001725,2]
[362301017,1748176233328,-159.92,0.00017268,2]
[362301018,1748176233338,-151.0,0.0001727,2]
[362301019,1748176233348,-151.0,0.0001727,2]
[362301020,1748176233358,-151.0,0.0001727,2]
[362301021,1748176233367,-151.0,0.0001727,2]
[362301022,1748176233377,-151.0,0.0001727,2]
[362301023,1748176233387,-151.0,0.0001727,2]
[362301024,1748176233396,-151.0,0.0001727,2]
[362301025,1748176233405,-151.0,0.0001727,2]
[362301026,1748176233495,-151.0,0.00017271,2]
[362301027,1748176233523,-151.0,0.00017271,2]
[362301028,1748176233533,-151.0,0.00017271,2]
[362301029,1748176233543,-151.0,0.00017271,2]
[362301030,1748176233554,-151.0,0.00017271,2]
[362301031,1748176233563,-231.522128,0.00017271,2]
[362301032,1748176233573,-231.522128,0.00017271,2]
[362301033,1748176233583,-151.0,0.00017271,2]
[362301034,1748176233593,-151.0,0.00017271,2]
[362301035,1748176233603,-151.0,0.00017271,2]
[362301036,1748176233613,-151.0,0.00017271,2]
[362301037,1748176233622,-151.0,0.00017271,2]
[362301038,1748176233632,-151.0,0.00017271,2]
[362301039,1748176233642,-151.0,0.00017271,2]
[362301040,1748176233652,-151.0,0.00017271,2]
[362301041,1748176233662,-151.0,0.00017271,2]
[362301042,1748176233671,-151.0,0.00017271,2]
[362301043,1748176233682,-151.0,0.00017271,2]
[362301044,1748176233692,-151.0,0.00017271,2]
[362301045,1748176233701,-151.0,0.00017271,2]
[362301046,1748176233711,-151.0,0.00017271,2]
[362301047,1748176233720,-151.0,0.00017271,2]
[362301048,1748176233730,-151.0,0.00017271,2]
[362301049,1748176233740,-151.0,0.00017273,2]
[362301050,1748176233749,-151.0,0.00017273,2]
[362301051,1748176233758,-151.0,0.00017273,2]
[362301052,1748176233768,-151.0,0.00017273,2]
[362301053,1748176233778,-231.522128,0.00017273,2]
[362301054,1748176233788,-231.522128,0.00017273,2]
[362301055,1748176233798,-151.0,0.00017273,2]
[362301056,1748176233808,-151.0,0.00017273,2]
[362301057,1748176233817,-241.76049263,0.00017378,2]
[362301058,1748176233827,-6900.07155619,0.00017452,2]
[362301059,1748176233837,-151.0,0.00017452,2]
[362301060,1748176233847,-151.0,0.00017452,2]
[362301061,1748176233857,-151.0,0.00017452,2]
[362301062,1748176233867,-151.0,0.00017452,2]
[362301063,1748176233886,-151.0,0.00017452,2]
[362301064,1748176233899,-151.0,0.00017452,2]
[362301065,1748176233909,-151.0,0.00017684,2]
[362301066,1748176233920,-151.0,0.00017684,2]
[362301067,1748176233931,-151.0,0.00017684,2]
[362301068,1748176233941,-151.0,0.00017684,2]
[362301069,1748176233951,-151.0,0.00017684,2]
[362301070,1748176233961,-197.095492,0.00017684,2]
[362301071,1748176233971,-197.095492,0.00017684,2]
[362301072,1748176233981,-151.0,0.00017684,2]
[362301073,1748176233992,-153.159294,0.00017684,2]
[362301074,1748176234002,-462.850152,0.00017684,2]
[362301075,1748176234012,-462.850152,0.00017684,2]
[362301076,1748176234022,-551.015473,0.00017684,2]
[362301077,1748176234032,-551.015473,0.00017684,2]
[362301078,1748176234042,-231.522128,0.00017684,2]
[362301079,1748176234052,-231.522128,0.00017684,2]
[362301080,1748176234062,-151.0,0.00017684,2]
[362301081,1748176234072,-151.0,0.00017684,2]
[362301082,1748176234082,-151.0,0.00017684,2]
[362301083,1748176234092,-151.0,0.00017684,2]
[362301084,1748176234105,-254.93392,0.00017684,2]
[362301085,1748176234115,-961.0,0.00017684,2]
[362301086,1748176234126,-414.219,0.00017684,2]
[362301087,1748176234137,-151.0,0.00017728,2]
[362301088,1748176234147,-151.0,0.00017728,2]
[362301089,1748176234157,-151.0,0.00017728,2]
[362301090,1748176234168,-6900.07155619,0.00017762,2]
[362301091,1748176234180,-151.0,0.00017828,2]
[362301092,1748176234191,-207.4,0.00017828,2]
[362301093,1748176234201,-177.69,0.00017864,2]
[362301094,1748176234212,-679.538,0.00017873,2]
[362301095,1748176234222,-180.49732624,0.00017873,2]
[362301096,1748176234231,-150.325,0.00017879,2]
[362301097,1748176234241,-151.0,0.0001789,2]
[362301098,1748176234251,-151.0,0.0001789,2]
[362301099,1748176234261,-363.8823352,0.0001789,2]
[362301100,1748176234272,-363.8823352,0.0001789,2]
[362301101,1748176234282,-363.8823352,0.0001789,2]
[362301102,1748176234292,-846.67159379,0.00017896,2]
[362301103,1748176234302,-10946.83123012,0.00017899,3]
[362301104,1748176234311,-279639.86971699,0.00017899,2]
[362301105,1748176234321,-12652.24558203,0.000179,3]
[362301106,1748176234331,-151.0,0.000179,2]
[362301107,1748176234340,-151.0,0.000179,2]
[362301108,1748176234350,-151.0,0.000179,2]
[362301109,1748176234360,-152.929707,0.000179,2]
[362301110,1748176234370,-151.0,0.000179,2]
[362301111,1748176234380,-282.051824,0.000179,2]
[362301112,1748176234390,-151.0,0.000179,2]
[362301113,1748176234400,-151.0,0.000179,2]
[362301114,1748176234409,-152.99136,0.000179,2]
[362301115,1748176234421,-151.0,0.000179,2]
[362301116,1748176234430,-151.0,0.000179,2]
[362301117,1748176234440,-151.0,0.000179,2]
[362301118,1748176234450,-197.095492,0.000179,2]
[362301119,1748176234460,-197.095492,0.000179,2]
[362301120,1748176234469,-222.226587,0.000179,2]
[362301121,1748176234479,-462.850152,0.000179,2]
[362301122,1748176234489,-462.850152,0.000179,2]
[362301123,1748176234498,-551.015473,0.000179,2]
[362301124,1748176234508,-551.015473,0.000179,2]
[362301125,1748176234518,-231.522128,0.000179,2]
[362301126,1748176234528,-231.522128,0.000179,2]
[362301127,1748176234538,-151.0,0.000179,2]
[362301128,1748176234548,-151.0,0.000179,2]
[362301129,1748176234558,-151.0,0.000179,2]
[362301130,1748176234568,-151.0,0.000179,2]
[362301131,1748176234577,-17162.92136967,0.000179,2]
[362301132,1748176234587,-151.0,0.000179,2]
[362301133,1748176234597,-151.0,0.000179,2]
[362301134,1748176234607,-151.0,0.000179,2]
[362301135,1748176234616,-151.0,0.000179,2]
[362301136,1748176234626,-250.0,0.000179,2]
[362301137,1748176234636,-215.5,0.000179,2]
[362301138,1748176234645,-587.0,0.00017966,2]
[362301139,1748176234655,-500.0,0.00017973,2]
[362301140,1748176234665,-500.0,0.00017973,2]
[362301141,1748176234675,-500.0,0.00017973,2]
[362301142,1748176234685,-500.0,0.00017973,2]
[362301143,1748176234695,-500.0,0.00017973,2]
[362301144,1748176234705,-199.39298912,0.00017995,2]
[362301145,1748176234714,-500.0,0.00017995,2]
[362301146,1748176234724,-500.0,0.00017995,2]
[362301147,1748176234734,-500.0,0.00017995,2]
[362301148,1748176234743,-500.0,0.00017995,2]
[362301149,1748176234754,-155.05792209,0.00017995,2]
[362301150,1748176234763,-500.0,0.00017995,2]
[362301151,1748176234773,-500.0,0.00017995,2]
[362301152,1748176234782,-500.0,0.00017995,2]
[362301153,1748176234792,-442.59699534,0.00017995,2]
[362301154,1748176234802,-151.0,0.00017996,2]
[362301155,1748176234812,-151.0,0.00017996,2]
[362301156,1748176234821,-212.55626673,0.00017996,3]
[362301157,1748176234831,-894.64583333,0.00017997,3]
[362301158,1748176234840,-314.64711426,0.00017997,3]
[362301159,1748176234849,-151.0,0.00017997,2]
[362301160,1748176234858,-151.0,0.00017997,2]
[362301161,1748176234868,-151.0,0.00017997,2]
[362301162,1748176234880,-151.0,0.00017997,2]
[362301163,1748176234890,-151.0,0.00017997,2]
[362301164,1748176234900,-231.522128,0.00017998,2]
[362301165,1748176234909,-231.522128,0.00017998,2]
[362301166,1748176234919,-231.522128,0.00017998,2]
[362301167,1748176234931,-231.522128,0.00017998,2]
[362301168,1748176234941,-151.0,0.00017998,2]
[362301169,1748176234951,-151.0,0.00017998,2]
[362301170,1748176234961,-160.0,0.00017998,2]
[362301171,1748176234971,-151.0,0.00017998,2]
[362301172,1748176234981,-151.0,0.00017998,2]
[362301173,1748176234992,-152.207674,0.00017998,2]
[362301174,1748176235003,-151.0,0.00017998,2]
[362301175,1748176235013,-151.0,0.00017998,2]
[362301176,1748176235022,-151.0,0.00017998,2]
[362301177,1748176235035,-151.0,0.00017998,2]
[362301178,1748176235131,-151.33595,0.00017999,2]
[362301179,1748176235151,-182.356504,0.00017999,2]
[362301180,1748176235162,-151.0,0.00017999,2]
[362301181,1748176235174,-191.010539,0.00017999,2]
[362301182,1748176235186,-151.0,0.00017999,2]
[362301183,1748176235197,-151.0,0.00017999,2]
[362301184,1748176235207,-151.0,0.00017999,2]
[362301185,1748176235217,-151.0,0.00017999,2]
[362301186,1748176235227,-197.095492,0.00017999,2]
[362301187,1748176235236,-197.095492,0.00017999,2]
[362301188,1748176235245,-197.095492,0.00017999,2]
[362301189,1748176235256,-197.095492,0.00017999,2]
[362301190,1748176235265,-462.850152,0.00017999,2]
[362301191,1748176235275,-462.850152,0.00017999,2]
[362301192,1748176235284,-462.850152,0.00017999,2]
[362301193,1748176235293,-462.850152,0.00017999,2]
[362301194,1748176235302,-551.015473,0.00017999,2]
[362301195,1748176235311,-551.015473,0.00017999,2]
[362301196,1748176235321,-551.015473,0.00017999,2]
[362301197,1748176235331,-551.015473,0.00017999,2]
[362301198,1748176235341,-231.522128,0.00017999,2]
[362301199,1748176235351,-231.522128,0.00017999,2]
[362301200,1748176235363,-151.0,0.00017999,2]
[362301201,1748176235373,-151.0,0.00017999,2]
[362301202,1748176235384,-151.0,0.00017999,2]
[362301203,1748176235395,-151.0,0.00017999,2]
[362301204,1748176235404,-151.0,0.00017999,2]
[362301205,1748176235415,-151.0,0.00017999,2]
[362301206,1748176235425,-151.0,0.00017999,2]
[362301207,1748176235436,-151.0,0.00017999,2]
[362301208,1748176235446,-151.0,0.00017999,2]
[362301209,1748176235455,-38122.01833852,0.00018,2]
[362301210,1748176235466,-151.0,0.00018,2]
[362301211,1748176235476,-151.0,0.00018,2]
[362301212,1748176235486,-151.0,0.00018,2]
[362301213,1748176235495,-151.0,0.00018,2]
[362301214,1748176235505,-197.095492,0.00018,2]
[362301215,1748176235515,-197.095492,0.00018,2]
[362301216,1748176235524,-197.095492,0.00018,2]
[362301217,1748176235534,-197.095492,0.00018,2]
[362301218,1748176235544,-462.850152,0.00018,2]
[362301219,1748176235553,-462.850152,0.00018,2]
[362301220,1748176235562,-462.850152,0.00018,2]
[362301221,1748176235572,-462.850152,0.00018,2]
[362301222,1748176235582,-551.015473,0.00018,2]
[362301223,1748176235591,-551.015473,0.00018,2]
[362301224,1748176235600,-551.015473,0.00018,2]
[362301225,1748176235610,-551.015473,0.00018,2]
[362301226,1748176235619,-231.522128,0.00018,2]
[362301227,1748176235628,-231.522128,0.00018,2]
[362301228,1748176235638,-151.0,0.00018,2]
[362301229,1748176235647,-151.0,0.00018,2]
[362301230,1748176235656,-151.0,0.00018,2]
[362301231,1748176235666,-151.0,0.00018,2]
[362301232,1748176235675,-169.334509,0.00018,2]
[362301233,1748176235685,-151.0,0.00018,2]
[362301234,1748176235694,-151.0,0.00018,2]
[362301235,1748176235703,-151.0,0.00018,2]
[362301236,1748176235713,-250.968229,0.00018027,2]
[362301237,1748176235723,-6900.07155619,0.00018072,2]
[362301238,1748176235732,-153.0,0.00018082,2]
[362301239,1748176235741,-153.0,0.00018082,2]
[362301240,1748176235750,-153.0,0.00018082,2]
[362301241,1748176235759,-153.0,0.00018082,2]
[362301242,1748176235769,-153.0,0.00018082,2]
[362301243,1748176235778,-151.0,0.00018188,2]
[362301244,1748176235787,-151.0,0.00018188,2]
[362301245,1748176235798,-846.67159378,0.00018192,2]
[362301246,1748176235807,-151.0,0.00018193,2]
[362301247,1748176235817,-151.0,0.00018193,2]
[362301248,1748176235826,-231.522128,0.00018279,2]
[362301249,1748176235835,-231.522128,0.00018279,2]
[362301250,1748176235846,-6900.07155619,0.00018383,2]
[362301251,1748176235855,-151.0,0.00018383,2]
[362301252,1748176235867,-151.0,0.00018383,2]
[362301253,1748176235876,-197.095492,0.00018383,2]
[362301254,1748176235886,-197.095492,0.00018383,2]
[362301255,1748176235896,-462.850152,0.00018383,2]
[362301256,1748176235907,-462.850152,0.00018383,2]
[362301257,1748176235918,-551.015473,0.00018383,2]
[362301258,1748176235928,-551.015473,0.00018383,2]
[362301259,1748176235938,-846.67159378,0.00018487,2]
[362301260,1748176235948,-1000.0,0.00018521,2]
[362301261,1748176235959,-1000.0,0.00018521,2]
[362301262,1748176235969,-500.0,0.00018521,2]
[362301263,1748176235979,-247.520088,0.00018555,2]
[362301264,1748176235988,-151.0,0.00018555,2]
[362301265,1748176235998,-298.793124,0.00018555,2]
[362301266,1748176236008,-232.4,0.000186,2]
[362301267,1748176236017,-6900.07155619,0.00018693,2]
[362301268,1748176236027,-160.0,0.0001878,2]
[362301269,1748176236036,-894.64583333,0.0001878,2]
[362301270,1748176236046,-160.0,0.0001878,2]
[362301271,1748176236056,-160.0,0.0001878,2]
[362301272,1748176236066,-160.0,0.0001878,2]
[362301273,1748176236077,-12652.24558203,0.0001878,2]
[362301274,1748176236086,-423.00916439,0.0001878,2]
[362301275,1748176236097,-212.55626673,0.0001878,2]
[362301276,1748176236109,-160.0,0.0001878,2]
[362301277,1748176236120,-314.64711426,0.0001878,2]
[362301278,1748176236130,-229.13142565,0.0001878,2]
[362301279,1748176236142,-160.0,0.0001878,2]
[362301280,1748176236152,-160.0,0.0001878,2]
[362301281,1748176236161,-160.0,0.0001878,2]
[362301282,1748176236171,-846.67159378,0.00018783,2]
[362301283,1748176236186,-158.351435,0.00018809,10]
[362301284,1748176236196,-231.522128,0.00018831,2]
[362301285,1748176236207,-231.522122,0.00018831,2]
[362301286,1748176236218,-151.0,0.00018849,2]
[362301287,1748176236228,-151.0,0.00018849,2]
[362301288,1748176236238,-151.0,0.00018849,2]
[362301289,1748176236248,-309.217942,0.00018849,2]
[362301290,1748176236258,-158.2750078,0.00018849,2]
[362301291,1748176236269,-1108.0449714,0.00018849,2]
[362301292,1748176236280,-158.2750078,0.00018849,2]
[362301293,1748176236290,-571.6513513,0.00018849,2]
[362301294,1748176236300,-182.9577294,0.00018849,2]
[362301295,1748176236310,-158.2750078,0.00018849,2]
[362301296,1748176236319,-176.2038764,0.00018849,2]
[362301297,1748176236329,-571.6513513,0.00018849,2]
[362301298,1748176236338,-158.2750078,0.00018849,2]
[362301299,1748176236349,-1141.7828346,0.00018849,2]
[362301300,1748176236359,-352.3166429,0.00018849,2]
[362301301,1748176236370,-158.2750078,0.00018849,2]
[362301302,1748176236380,-176.2038764,0.00018849,2]
[362301303,1748176236392,-571.6513513,0.00018849,2]
[362301304,1748176236402,-176.2038764,0.00018849,2]
[362301305,1748176236411,-571.6513513,0.00018849,2]
[362301306,1748176236422,-158.2750078,0.00018849,2]
[362301307,1748176236432,-158.2750078,0.00018849,2]
[362301308,1748176236444,-571.6513513,0.00018849,2]
[362301309,1748176236454,-157.7471942,0.00018849,2]
[362301310,1748176236463,-571.6513513,0.00018849,2]
[362301311,1748176236473,-571.6513513,0.00018849,2]
[362301312,1748176236483,-557.9725393,0.00018849,2]
[362301313,1748176236493,-151.0,0.00018865,2]
[362301314,1748176236503,-151.0,0.00018865,2]
[362301315,1748176236512,-197.095492,0.00018865,2]
[362301316,1748176236522,-197.095492,0.00018865,2]
[362301317,1748176236532,-462.850152,0.00018865,2]
[362301318,1748176236623,-462.850152,0.00018865,2]
[362301319,1748176236633,-551.015473,0.00018865,2]
[362301320,1748176236643,-551.015473,0.00018865,2]
[362301321,1748176236652,-587.0,0.00018865,2]
[362301322,1748176236662,-151.0,0.00018887,2]
[362301323,1748176236671,-250.73561,0.00018887,2]
[362301324,1748176236680,-279.677262,0.00018887,2]
[362301325,1748176236690,-151.0,0.0001889,2]
[362301326,1748176236699,-151.0,0.0001889,2]
[362301327,1748176236709,-197.095492,0.0001889,2]
[362301328,1748176236719,-197.095492,0.0001889,2]
[362301329,1748176236728,-462.850152,0.0001889,2]
[362301330,1748176236738,-462.850152,0.0001889,2]
[362301331,1748176236750,-551.015473,0.0001889,2]
[362301332,1748176236760,-551.015473,0.0001889,2]
[362301333,1748176236771,-158.351435,0.00018901,10]
[362301334,1748176236783,-1800.0,0.00018972,2]
[362301335,1748176236795,-158.351435,0.00018993,10]
[362301336,1748176236804,-84491.62837982,0.00019,2]
[362301337,1748176236813,-432.1173593,0.00019,2]
[362301338,1748176236823,-272.8,0.00019,2]
[362301339,1748176236837,-151.0,0.00019,2]
[362301340,1748176236848,-241.453898,0.00019,2]
[362301341,1748176236858,-197.095492,0.00019,2]
[362301342,1748176236867,-197.095495,0.00019,2]
[362301343,1748176236878,-462.850152,0.00019,2]
[362301344,1748176236888,-462.850154,0.00019,2]
[362301345,1748176236898,-551.015473,0.00019,2]
[362301346,1748176236908,-551.015469,0.00019,2]
[362301347,1748176236917,-151.0,0.00019,2]
[362301348,1748176236927,-6900.07155619,0.00019003,2]
[362301349,1748176236937,-176.41775351,0.00019068,2]
[362301350,1748176236947,-1500.0,0.00019068,2]
[362301351,1748176236957,-846.67159378,0.00019078,2]
[362301352,1748176236966,-158.351435,0.00019085,10]
[362301353,1748176236976,-500.0,0.00019146,2]
[362301354,1748176236987,-151.0,0.0001915,2]
[362301355,1748176236997,-1612.16,0.0001915,2]
[362301356,1748176237006,-1612.16,0.0001915,2]
[362301357,1748176237015,-1612.16,0.0001915,2]
[362301358,1748176237025,-1612.16,0.0001915,2]
[362301359,1748176237034,-1612.16,0.0001915,2]
[362301360,1748176237043,-1612.16,0.0001915,2]
[362301361,1748176237053,-1612.16,0.0001915,2]
[362301362,1748176237062,-1612.16,0.0001915,2]
[362301363,1748176237071,-1612.16,0.0001915,2]
[362301364,1748176237082,-1612.16,0.0001915,2]
[362301365,1748176237095,-1612.16,0.0001915,2]
[362301366,1748176237107,-1612.16,0.0001915,2]
[362301367,1748176237117,-1612.16,0.0001915,2]
[362301368,1748176237126,-1612.16,0.0001915,2]
[362301369,1748176237135,-1612.16,0.0001915,2]
[362301370,1748176237144,-1612.16,0.0001915,2]
[362301371,1748176237153,-1612.16,0.0001915,2]
[362301372,1748176237163,-1612.16,0.0001915,2]
[362301373,1748176237172,-1612.16,0.0001915,2]
[362301374,1748176237181,-1612.16,0.0001915,2]
[362301375,1748176237190,-1612.16,0.0001915,2]
[362301376,1748176237200,-1612.16,0.0001915,2]
[362301377,1748176237209,-1612.16,0.0001915,2]
[362301378,1748176237218,-1612.35353951,0.0001915,2]
[362301379,1748176237227,-500.85062816,0.00019173,2]
[362301380,1748176237236,-500.83294456,0.00019173,2]
[362301381,1748176237246,-500.0,0.00019173,2]
[362301382,1748176237255,-500.0,0.00019173,2]
[362301383,1748176237265,-158.351435,0.00019177,10]
[362301384,1748176237274,-432.81508835,0.00019178,2]
[362301385,1748176237284,-430.0,0.00019178,2]
[362301386,1748176237294,-400.0,0.00019178,2]
[362301387,1748176237303,-430.0,0.00019178,2]
[362301388,1748176237312,-1027.42,0.00019178,2]
[362301389,1748176237322,-430.0,0.00019178,2]
[362301390,1748176237331,-430.0,0.00019178,2]
[362301391,1748176237340,-430.0,0.00019178,2]
[362301392,1748176237350,-430.0,0.00019178,2]
[362301393,1748176237359,-430.0,0.00019178,2]
[362301394,1748176237368,-430.0,0.00019178,2]
[362301395,1748176237378,-430.0,0.00019178,2]
[362301396,1748176237387,-430.0,0.00019178,2]
[362301397,1748176237396,-430.0,0.00019178,2]
[362301398,1748176237405,-516.89122952,0.00019178,2]
[362301399,1748176237415,-430.0,0.00019178,2]
[362301400,1748176237425,-438.62704701,0.00019178,2]
[362301401,1748176237434,-430.0,0.00019178,2]
[362301402,1748176237444,-507.41506635,0.00019178,2]
[362301403,1748176237453,-431.09057324,0.00019178,2]
[362301404,1748176237463,-430.0,0.00019178,2]
[362301405,1748176237472,-430.0,0.00019178,2]
[362301406,1748176237482,-430.0,0.00019178,2]
[362301407,1748176237491,-430.0,0.00019178,2]
[362301408,1748176237500,-430.0,0.00019178,2]
[362301409,1748176237509,-430.0,0.00019178,2]
[362301410,1748176237519,-400.61150748,0.00019178,2]
[362301411,1748176237528,-401.76464422,0.00019178,2]
[362301412,1748176237538,-430.0,0.00019178,2]
[362301413,1748176237548,-430.0,0.00019178,2]
[362301414,1748176237557,-1000.0,0.00019178,2]
[362301415,1748176237567,-433.37834558,0.00019178,2]
[362301416,1748176237576,-430.0,0.00019178,2]
[362301417,1748176237586,-430.0,0.00019178,2]
[362301418,1748176237596,-430.0,0.00019178,2]
[362301419,1748176237605,-430.0,0.00019178,2]
[362301420,1748176237615,-430.0,0.00019178,2]
[362301421,1748176237624,-430.0,0.00019178,2]
[362301422,1748176237634,-430.0,0.00019178,2]
[362301423,1748176237643,-430.0,0.00019178,2]
[362301425,1748176237653,-430.0,0.00019178,2]
[362301426,1748176237662,-430.0,0.00019178,2]
[362301428,1748176237671,-430.0,0.00019178,2]
[362301430,1748176237682,-430.0,0.00019178,2]
[362301432,1748176237691,-430.0,0.00019178,2]
[362301434,1748176237701,-430.0,0.00019178,2]
[362301436,1748176237711,-430.0,0.00019178,2]
[362301438,1748176237721,-430.0,0.00019178,2]
[362301440,1748176237731,-430.0,0.00019178,2]
[362301442,1748176237740,-400.90972106,0.00019178,2]
[362301444,1748176237750,-430.0,0.00019178,2]
[362301446,1748176237759,-453.98830064,0.00019178,2]
[362301448,1748176237768,-430.0,0.00019178,2]
[362301450,1748176237778,-430.0,0.00019178,2]
[362301452,1748176237788,-430.0,0.00019178,2]
[362301454,1748176237797,-419.53107302,0.00019178,2]
[362301456,1748176237807,-430.0,0.00019178,2]
[362301458,1748176237816,-402.26377488,0.00019178,2]
[362301460,1748176237826,-430.0,0.00019178,2]
[362301462,1748176237836,-430.0,0.00019178,2]
[362301464,1748176237846,-430.0,0.00019178,2]
[362301467,1748176237856,-430.0,0.00019178,2]
[362301469,1748176237866,-504.62779254,0.00019178,2]
[362301478,1748176237951,-430.0,0.00019178,2]
[362301480,1748176237961,-430.0,0.00019178,2]
[362301482,1748176237971,-443.21735349,0.00019178,2]
[362301484,1748176237980,-430.0,0.00019178,2]
[362301486,1748176237990,-430.0,0.00019178,2]
[362301488,1748176237999,-430.0,0.00019178,2]
[362301491,1748176238014,-430.0,0.00019178,2]
[362301493,1748176238023,-405.25971384,0.00019178,2]
[362301495,1748176238033,-430.0,0.00019178,2]
[362301497,1748176238042,-430.0,0.00019178,2]
[362301499,1748176238056,-430.0,0.00019178,2]
[362301501,1748176238065,-430.0,0.00019178,2]
[362301503,1748176238075,-430.0,0.00019178,2]
[362301505,1748176238085,-430.0,0.00019178,2]
[362301507,1748176238095,-430.0,0.00019178,2]
[362301509,1748176238110,-430.0,0.00019178,2]
[362301511,1748176238119,-430.0,0.00019178,2]
[362301513,1748176238129,-430.0,0.00019178,2]
[362301515,1748176238143,-516.33745342,0.00019178,2]
[362301517,1748176238152,-430.0,0.00019178,2]
[362301519,1748176238161,-430.0,0.00019178,2]
[362301521,1748176238171,-430.0,0.00019178,2]
[362301523,1748176238185,-430.0,0.00019178,2]
[362301525,1748176238196,-430.0,0.00019178,2]
[362301527,1748176238206,-422.69410625,0.00019178,2]
[362301529,1748176238215,-430.0,0.00019178,2]
[362301531,1748176238225,-430.0,0.00019178,2]
[362301533,1748176238234,-430.0,0.00019178,2]
[362301535,1748176238244,-248.99506919,0.00019178,2]
[362301536,1748176238254,-430.0,0.00019178,2]